Cogmind - Beta 16 @@@ ROGUE MODE // 2025.11.07 @ 15:18:13 Player: maniacgrid Result: Destroyed by L-31 Rogue with Katana Performance ------------- Evolutions (1) 500 Regions Visited (3) 600 Robots Destroyed (23) 115 Value Destroyed (560) 560 Prototype IDs (2) 40 Alien Tech Used (0) 0 Bonus (-158) -158 TOTAL SCORE: 1657 Bonus ------- Friendly Fire -158 Cogmind --------- Core Integrity 0/400 Matter 148/300 Energy 100/100 System Corruption 2% Temperature Cool (0) Movement Core (1350) Ox26 Location -9/Materials Parts ------- > --- POWER (2) -------- (None) > --- PROPULSION (3) --- (None) > --- UTILITY (2) ------ Huge Storage Unit > --- WEAPON (2) ------- (None) > --- INVENTORY (25) --- Improved Heat Sink Medium Battery (150) Structural Scanner Sensor Array Peak State ------------ > --- POWER ------------ Light Nuclear Core Light Angular Momentum Engine > --- PROPULSION ------- Aluminum Leg Aluminum Leg > --- UTILITY ---------- Huge Storage Unit Structural Scanner > --- WEAPON ----------- Light Assault Rifle Light Cannon > --- INVENTORY -------- Hover Unit Improved Heat Sink Medium Battery Medium Battery Medium Matter Pod Structural Scanner Sensor Array Signal Interpreter Signal Interpreter [Rating: 15] Favorites ----------- Power Light Ion Engine Engine Light Ion Engine Power Core Light Nuclear Core Propulsion Flight Unit Leg Aluminum Leg Wheel Wheel Hover Unit Hover Unit Flight Unit Flight Unit Utility Huge Storage Unit Device Structural Scanner Storage Huge Storage Unit Weapon Light Cannon Energy Gun EM Pulse Gun Ballistic Gun Light Assault Rifle Ballistic Cannon Light Cannon Build | -11 -10 -10 -9 ------- Run | Yrd Mat Min Mat Slots Evolved 2 | . . . 2 Power 1 | . . . 1 Propulsion 1 | . . . 1 Utility . | . . . . Weapon . | . . . . Parts Attached 26 | 5 7 12 2 Power 5 | 1 . 2 2 Engine 4 | 1 . 2 1 Core 1 | . . . 1 Reactor . | . . . . Propulsion 9 | 2 2 5 . Treads . | . . . . Leg 4 | . 2 2 . Wheel 2 | 2 . . . Hover 1 | . . 1 . Flight 2 | . . 2 . Utility 4 | . 2 2 . Device 2 | . 1 1 . Storage 2 | . 1 1 . Processor . | . . . . Hackware . | . . . . Protection . | . . . . Artifact . | . . . . Weapon 8 | 2 3 3 . Energy Gun 1 | 1 . . . Energy Cannon . | . . . . Ballistic Gun 2 | 1 . 1 . Ballistic Cannon 5 | . 3 2 . Launcher . | . . . . Special Weapon . | . . . . Impact Weapon . | . . . . Slashing Weapon . | . . . . Piercing Weapon . | . . . . Special Melee Weapon . | . . . . Unidentified Prototypes . | . . . . Parts Lost 14 | . 3 4 7 Power 4 | . 1 . 3 Propulsion 4 | . 1 1 2 Utility . | . . . . Weapon 6 | . 1 3 2 Highest Loss Streak 6 | . 2 2 6 To Critical Strikes . | . . . . Average Backups 9 | 2 9 11 7 Power . | . . 1 . Propulsion 1 | 1 1 1 . Utility 5 | . 4 5 6 Weapon 2 | . 3 2 . Tool/Special . | . . . . Unused Backups 10 | . 1 2 7 Power . | . . . . Propulsion . | . . . . Utility 7 | . . . 7 Weapon 3 | . 1 2 . Tool/Special . | . . . . Average Slot Usage (%) 89 | . 85 92 81 Engine 8 | . 2 11 8 Leg 9 | . 13 6 20 Wheel 4 | . 14 . . Flight 11 | . . 19 . Device 5 | . 13 . 10 Storage 21 | . 13 27 11 Ballistic Gun 7 | . 1 9 10 Ballistic Cannon 17 | . 24 15 9 Peak Build Rating 15 | 5 8 8 15 Average Rating 7 | 3 6 7 11 On Entrance 5 | . 5 7 8 Avg Prop Armor Cover (%) . | . . . . Naked Turns . | . . . . Heaviest Build 99 | 6 89 90 99 Greatest Support 20 | 20 20 20 20 Greatest Overweight (x) 21 | . 8 21 4 Average Overweight (x) 4 | . 3 8 4 Largest Inventory Capacity 25 | 5 25 25 25 Average Capacity 24 | 5 24 25 25 Most Carried 15 | 5 11 15 10 Average Carried 9 | 2 9 11 7 Final Capacity 25 | 5 25 25 25 Final Carried 10 | 3 10 9 4 Class Distribution -------------------- 100% | Mutant Dominant Class ---------------- Mutant | -10/Materials Mutant | -10/Mines Mutant | -9/Materials Resources | -11 -10 -10 -9 ----------- Run | Yrd Mat Min Mat Matter Collected 786 | 254 296 169 67 Remotely . | . . . . Salvage Created 490 | 54 170 199 67 Parts 38 | 6 13 15 4 Haulers Intercepted . | . . . . Recyclers Shooed . | . . . . Parts Field Recycled . | . . . . Retrieved Matter . | . . . . Parts Self-Destructed . | . . . . Prevented . | . . . . Parts Restored . | . . . . Kills | -11 -10 -10 -9 ------- Run | Yrd Mat Min Mat Combat Hostiles Destroyed 20 | 1 8 9 2 Guns 3 | . . 2 1 Cannons 16 | . 8 7 1 AOE 1 | 1 . . . Classes Destroyed 5 | 2 2 . 1 Tunneler 1 | 1 . . . Watcher 1 | . 1 . . Swarmer 9 | . 4 5 . Grunt 10 | 1 4 4 1 Sentry 1 | . . . 1 Thug 1 | . . 1 . Best Kill Streak 5 | 2 4 5 1 Combat Bots Only 5 | 1 4 5 1 Max Kills in Single Turn 2 | 2 1 1 1 Gunslinging . | . . . . Exploded 1 | 1 . . . Melee . | . . . . Uniques/NPCs Destroyed . | . . . . Combat | -11 -10 -10 -9 -------- Run | Yrd Mat Min Mat Hostile Shots Fired 251 | 5 47 102 97 Missed 68 | 2 9 33 24 Hits 183 | 3 38 69 73 Melee 9 | . . . 9 Projectile 174 | 3 38 69 64 Critical Strikes 4 | . 1 1 2 Damage Taken 2203 | 32 451 639 1081 Core 650 | 12 82 122 434 Absorbed by Shields . | . . . . Core Remaining (%) 54 | 95 . 13 . Volleys Fired 92 | 4 36 35 17 Largest 2 | 2 2 2 2 Hottest 70 | 60 70 60 50 Shots Fired 178 | 8 71 69 30 Gun 55 | 8 5 25 17 Cannon 123 | . 66 44 13 Launcher . | . . . . Special . | . . . . Kinetic 169 | 4 66 69 30 Thermal . | . . . . Explosive . | . . . . Electromagnetic 9 | 4 5 . . Robot Hit Streak 8 | 4 4 8 6 Robot Miss Streak 5 | 4 4 5 2 Penetration Max . | . . . . Secondary Targets . | . . . . Shots Hit Robots 97 | 4 32 39 22 Core Hits 37 | 3 12 15 7 Critical Kills 1 | . . 1 . Critical Parts Destroyed 1 | . . 1 . Critical Strikes 5 | . . 5 . Destroy 2 | . . 2 . Blast 3 | . . 3 . Melee Attacks . | . . . . Impact . | . . . . Slashing . | . . . . Piercing . | . . . . Sneak Attacks . | . . . . Combat Hostiles . | . . . . Follow-up Attacks . | . . . . Damage Inflicted 1441 | 107 522 561 251 Guns 287 | 30 24 122 111 Cannons 1076 | . 498 438 140 Explosions 77 | 77 . . . Melee . | . . . . Ramming 1 | . . 1 . Kinetic 1315 | 6 498 560 251 Thermal 77 | 77 . . . Explosive . | . . . . Electromagnetic 48 | 24 24 . . Impact . | . . . . Slashing . | . . . . Piercing . | . . . . Highest Corruption 2 | . . . 2 Average Corruption 2 | . . . 2 Corruption Purged . | . . . . Corruption Blocked . | . . . . Effects 1 | . . . 1 Message Errors 1 | . . . 1 Overload Shots . | . . . . Overflow Damage 9 | . 9 . . Projectiles 9 | . 9 . . Explosions . | . . . . Melee . | . . . . Knockbacks 20 | . 12 8 . Impact . | . . . . Kinetic 16 | . 10 6 . Secondary 4 | . 2 2 . Self-Inflicted Damage . | . . . . Shots . | . . . . Rammed 2 | . . 1 1 Targets Rammed 3 | . . 1 2 Kicked 1 | . . . 1 Crushed . | . . . . Highest Temperature 155 | 38 155 59 104 Average Temperature 59 | 21 98 31 46 Received Heat Transfer 741 | 18 201 129 393 Siege Activations . | . . . . Martial Activations . | . . . . Shielding Activations . | . . . . Robots Disrupted . | . . . . Combat Hostiles . | . . . . Robots Corrupted . | . . . . Combat Hostiles . | . . . . Parts Fried . | . . . . Impact Corruptions . | . . . . Robots Melted . | . . . . Combat Hostiles . | . . . . Parts Melted . | . . . . Heat Transferred 100 | 100 . . . Parts Sabotaged . | . . . . Parts Stolen . | . . . . Parts Stripped . | . . . . Power Chain Reactions 1 | 1 . . . Alert | -11 -10 -10 -9 ------- Run | Yrd Mat Min Mat Maximum Alert Level . | . . . . Low Security (%) 100 | 100 100 100 100 Level 1 . | . . . . Level 2 . | . . . . Level 3 . | . . . . Level 4 . | . . . . Level 5 . | . . . . High Security . | . . . . Max Security . | . . . . Peak Influence 95 | 25 90 95 30 Initial 16 | . 16 . . Average 12 | 2 25 8 4 Influence Increases 608 | 25 273 235 75 Destroy 0b10 Robot/C 400 | 20 160 180 40 Destroy 0b10 Robot/NC 10 | 5 5 . . Destroy Leader 92 | . 32 40 20 Successful Hack 12 | . 12 . . Disable Machine 15 | . . . 15 Destroy Structure 4 | . 4 . . Lose Combat Pursuer 75 | . 60 15 . Influence Decreases 608 | . 298 235 75 Entered New Map 9 | . 9 . . Time Decay 525 | . 285 195 45 Lost Part 74 | . 4 40 30 Squads Dispatched 4 | . 3 . 1 Investigation 2 | . 1 . 1 Extermination . | . . . . Reinforcement 2 | . 2 . . Assault . | . . . . Garrison . | . . . . Intercept . | . . . . Searches Triggered . | . . . . Construction Impeded . | . . . . Haulers Reinforced . | . . . . Active Scanning Responses . | . . . . Cargo Convoy Interrupts . | . . . . Stealth | -11 -10 -10 -9 --------- Run | Yrd Mat Min Mat Distress Signals . | . . . . Communications Jammed . | . . . . Distress Signals . | . . . . Times Spotted 35 | 1 14 11 9 Peak Tracking Total 7 | 1 4 6 7 Tactical Retreats 5 | . 4 1 . Traps | -11 -10 -10 -9 ------- Run | Yrd Mat Min Mat Traps Triggered 1 | . . . 1 Indirectly . | . . . . Trap Hack Attempts . | . . . . Triggered . | . . . . Disarmed . | . . . . Reprogrammed . | . . . . Reused . | . . . . Traps Extracted . | . . . . Installed . | . . . . Triggered . | . . . . Machines | -11 -10 -10 -9 ---------- Run | Yrd Mat Min Mat Machines Disabled 1 | . . . 1 Max in Single Turn 1 | . . . 1 Machines Repaired . | . . . . Machines Dismantled . | . . . . Machines Sabotaged . | . . . . Overloaded Fab Kills . | . . . . Hacking | -11 -10 -10 -9 --------- Run | Yrd Mat Min Mat Machines Accessed 3 | . 3 . . Terminals 3 | . 3 . . Fabricators . | . . . . Repair Stations . | . . . . Recycling Units . | . . . . Scanalyzers . | . . . . Garrison Access . | . . . . Total Hacks 7 | . 7 . . Successful 3 | . 3 . . Failed 4 | . 4 . . Catastrophic 1 | . 1 . . Database Lockouts . | . . . . Manual . | . . . . Terminals 7 | . 7 . . Fabricators . | . . . . Repair Stations . | . . . . Recycling Units . | . . . . Scanalyzers . | . . . . Garrison Access . | . . . . Terminal Hacks 3 | . 3 . . Record 1 | . 1 . . Prototype ID Bank 1 | . 1 . . Dispatch Records 1 | . 1 . . Fabricator Hacks . | . . . . Repair Station Hacks . | . . . . Recycling Unit Hacks . | . . . . Scanalyzer . | . . . . Garrison Access Hacks . | . . . . Unauthorized Hacks . | . . . . Terminals . | . . . . Fabricators . | . . . . Repair Stations . | . . . . Recycling Units . | . . . . Scanalyzers . | . . . . Garrison Access . | . . . . Data Cores Recovered . | . . . . Used . | . . . . Hacking Detections 2 | . 2 . . Full Trace Events . | . . . . Feedback Events . | . . . . Feedback Blocked . | . . . . Robot Schematics Acquired . | . . . . Robots Built . | . . . . Authchips . | . . . . Time . | . . . . Total Robot Build Rating . | . . . . Part Schematics Acquired . | . . . . Parts Built . | . . . . Authchips . | . . . . Time . | . . . . Total Part Build Rating . | . . . . Part Studies Acquired . | . . . . Parts Repaired . | . . . . Time . | . . . . Parts Recycled . | . . . . Recycled Matter . | . . . . Retrieved Matter . | . . . . Retrieved Components . | . . . . Parts Scanalyzed . | . . . . Part Schematics Acquired . | . . . . Parts Damaged . | . . . . Bothacking | -11 -10 -10 -9 ------------ Run | Yrd Mat Min Mat Used RIF Installer . | . . . . Robots Hacked . | . . . . Non-combat . | . . . . Combat . | . . . . Robot Hacks Applied . | . . . . Relay Couplers Released . | . . . . Fabnet Peak Effective % . | . . . . Robots Rewired . | . . . . Allies Hacked . | . . . . Hacks Repelled . | . . . . Allies | -11 -10 -10 -9 -------- Run | Yrd Mat Min Mat Total Allies . | . . . . Largest Group . | . . . . Highest-Rated Group . | . . . . Highest-Rated Ally . | . . . . Total Orders . | . . . . Ally Attacks . | . . . . Total Damage . | . . . . Kills . | . . . . Allies Corrupted . | . . . . Allies Melted . | . . . . Intel | -11 -10 -10 -9 ------- Run | Yrd Mat Min Mat Active Infowar (turns) 1358 | . 944 108 306 Structural 1358 | . 944 108 306 Robot Analysis Total . | . . . . Derelict Logs Recovered . | . . . . Drone Launches . | . . . . Drone Recoveries . | . . . . Exploration | -11 -10 -10 -9 ------------- Run | Yrd Mat Min Mat Turns Passed 3530 | 90 998 2131 311 Spaces Moved 835 | 91 425 259 60 Core 22 | 22 . . . Treads . | . . . . Legs 283 | . 118 105 60 Wheels 376 | 69 307 . . Hover . | . . . . Flight 154 | . . 154 . Fastest Speed 50 | 50 80 400 400 Average Speed 379 | 72 204 769 400 Slowest Speed 1720 | 80 400 1720 400 Overloaded Moves . | . . . . Propulsion Burnouts . | . . . . Robots Hopped . | . . . . Potential Cave-ins . | . . . . Cave-ins Triggered . | . . . . Exploration Rate (%) 30 | 7 55 49 12 Regions Visited 3 Branch Regions 1 Pre-discovered Areas . | . . . . Known Exits Taken . | . . . . Unknown Exits Taken 3 | 1 1 1 . Scrap Searched . | . . . . Spaces Dug . | . . . . Terrain Destroyed . | . . . . Melee . | . . . . Projectile . | . . . . AOE . | . . . . Terrain Rammed . | . . . . Walls Destroyed . | . . . . Machines Disabled . | . . . . Actions | -11 -10 -10 -9 --------- Run | Yrd Mat Min Mat Total 1009 | 107 486 328 88 Wait . | . . . . Move 832 | 90 424 258 60 Hop . | . . . . Pick Up 37 | 8 15 12 2 Fast Attach . | . . . . Attach 20 | 5 6 7 2 Detach . | . . . . Swap 8 | . 1 7 . Drop 17 | . 4 8 5 Fire 92 | 4 36 35 17 Melee . | . . . . Ram 2 | . . 1 1 Kick 1 | . . . 1 Crush . | . . . . Escape Stasis . | . . . . Rewire . | . . . . Trap . | . . . . Miscellaneous . | . . . . Route ------- -11/Scrapyard -10/Materials -10/Mines -9/Materials (discovered 1 exit: [*Sto]) History --------- Turn | Location | Event 2 | -11/Scrapyard | Met Revision 17 69 | -11/Scrapyard | Discovered new exit (range 8) 91 | -11/Scrapyard | Entered Materials 306 | -10/Materials | Build established: Mutant 1037 | -10/Materials | Discovered new exit (range 13) 1089 | -10/Materials | Entered Mines 1090 | -10/Mines | Met a Derelict bent on vengeance 1347 | -10/Mines | Core integrity fell below 50% 2753 | -10/Mines | Core integrity fell below 20% 3196 | -10/Mines | Discovered new exit (range 5) 3220 | -10/Mines | Entered Materials 3220 | -9/Materials | Evolved 2 slots: Power x1, Propulsion x1 3301 | -9/Materials | Discovered new exit (range 13) 3522 | -9/Materials | Core integrity fell below 50% 3527 | -9/Materials | Core integrity fell below 20% 3531 | -9/Materials | Destroyed by L-31 Rogue with Katana Last Messages --------------- 03487_ U-05 Engineer lays Concrete. 03490_ U-05 Engineer destroyed. 03491_ Lgt. Nuclear Core destroyed. 03493_ K-01 Serf collects debris. 03500_ Lgt. Angular Momentum Engine destroyed. 03503_ Lgt. Cannon destroyed. 03503_ G-47 Trooper destroyed. 03504_ Acquired 40 matter. 03505_ K-01 Serf collects debris. 03511_ Lgt. Assault Rifle destroyed. 03511_ Aluminum Leg destroyed. 03511_ Kicked L-31 Rogue. 03513_ Aluminum Leg destroyed. 03515_ K-01 Serf collects debris. 03517_ Slammed into L-31 Rogue. 03517_ Destabilizing: System corrupted (+2). 03518_ K-01 Serf collects debris. 03526_ Structural Scanner severed. 03528_ OOG/707WB1LE9FUFWWDMODTVP 03529_ G-34 Mercenary destroyed. Map ----- +----------------------------------------------------+ | ?????????????????????????????????????????????????? | | ???????## #### ?????????????????????????????????? | | ???????## #### ?????????????????????????????????? | | ???????## ##?????????????????????????????????? | | ###????## ????? ? ???????????????????????? | | ###????## < ?????? " ???????????????????????? | | ##????## ??????? ???????????????????????? | | ##?????# #?????# #??????????????????????? | | ##?????## ##?????## ##??????????????????????? | | ######### ##?????## # ??????????????????????? | | ######### # ????? # # ??????????????????????? | | ## #### # ????? / + ??????????????????????? | | ## ### # ????? # # ??????????????????????? | | ## ## # ???? # # ??????????????????????? | | ## ## ###????## # ??????????????????????? | | #####+### ##????## ##??????????????????????? | | ##????## ##??????????????????????? | | ######## ##??????????????????????? | | ######## ! ##??????????????????????? | | ########% !##??????????????????????? | | ######### ######### #########???????????????? | | ##????### ######### #########???????????????? | | +##?????## ##?????## # ##???????????????? | | ?????## ##????? # [# ##???????????????? | | ????????## ## """ #u%g# ##???????????????? | | ????????## ## """ + g=@lk! ##???????????????? | | ????????## + """ # gg#!! ##???????????????? | | ????????## #### # !# ##???????????????? | | ????????## #### ? # #########???????????????? | | ????????## ??######?## #########???????????????? | | ????????## ??## ? # ##??????????????????????? | | ????????## ????????? # ##??????????????????????? | | ????????## ????????? + ##??????????????????????? | | ????????## ????????? # ##??????????????????????? | | ????????## ????????? # ##??????????????????????? | | ?????????????????? # ##??????????????????????? | | ??????????????????#### ##??????????????????????? | | ?????????????????? # ????????????????????????? | | ???????????????????? # ????????????????????????? | | ???????????????????? + ????????????????????????? | | ???????????????????? # ????????????????????????? | | ?????????????????????????????????????????????????? | | ?????????????????????????????????????????????????? | | ?????????????????????????????????????????????????? | | ?????????????????????????????????????????????????? | | ?????????????????????????????????????????????????? | | ?????????????????????????????????????????????????? | | ?????????????????????????????????????????????????? | | ?????????????????????????????????????????????????? | | ?????????????????????????????????????????????????? | +----------------------------------------------------+ Best States ------------- Heat Dissipation 28 Energy Generation 27 Energy Capacity 310 Matter Stores 300 Matter Capacity 300 Sight Range 16 Terrain Scan Density 10 Evasion (%) 50 Item Schematics ----------------- None Robot Schematics ------------------ None Fabricated ------------ Nothing Repaired ---------- Nothing Studied --------- None Alien Tech Used ----------------- None Achievements -------------- Backstab Bumper Bots For Emergencies Only I Have A Map? Organ Harvest Storm Trooper There's More Where That Came From Challenges ------------ None Game ------ Seed GuidedPotentialComputer Manual? 0 Play Time 00:28:03 Cumulative 1.2 hours Start 2025.11.07 @ 14:49:32 End 2025.11.07 @ 15:18:13 Sessions 1 Manual Loads 0 Difficulty Rogue Special Mode None Game No. 6 Rogue 6 Adventurer 0 Explorer 0 Win Type - Total 0 Types 0/0/0/0/0/0/0/0/0/0 Lore% 0 Gallery% 2 Achievement% 3 Wizard Run 0 Options --------- Layout 1 ASCII 0 Keyboard 0 Movement Arrows Keybinds 0 Fullscreen 1 Font 16/X11Caps Map View 25x20 Zoom Use 75% Tactical HUD 1 Map Filters NONE Filters NONE Steam SD RUN: 1a6d2261-68e8-4680-bfce-7a548b65c2b4